[Event "39th OBSenEM 2023"]
[Site "Berlin"]
[Date "2023.01.24"]
[Round "1.1"]
[White "Fiss, Wolfgang"]
[Black "Koehler, Gerhard"]
[Result "0-1"]
[ECO "E76"]
[WhiteElo "1803"]
[BlackElo "2241"]
[Annotator "TA"]
[PlyCount "106"]
[EventDate "2023.01.24"]
[EventType "swiss"]
[EventCountry "GER"]
[SourceTitle "playchess.com"]
[Source "ChessBase"]
[SourceQuality "1"]
[TimeControl "40/5400+30:1800+30"]

{[%evp 10,106,3,-16,-10,-127,-124,-128,-119,-116,-86,-91,-80,-89,-78,-127,-121,-162,-155,-158,-148,-158,-102,-116,-110,-108,-76,-119,-102,-86,-81,-133,-132,-142,-133,-189,-194,-191,-154,-206,-212,-362,-247,-239,-210,-304,-291,-301,-308,-312,-312,-313,-310,-325,-325,-303,-294,-291,-281,-285,-285,-318,-256,-452,-449,-427,-429,-418,-417,-473,-493,-581,-593,-29994,-460,-487,-441,-12831,-12831,-12835,-320,-12836,-12835,-12837,-629,-12834,-12835,-12839,-12839,-12840,-1815,-12840,-1170,-12841,-12826,-1988,-4584,-12833,-12833]} 1. d4 {[%emt 0:00:06]} Nf6 {[%emt 0:00:07]} 2. c4 {[%emt 0:00:08]} g6 {[%emt 0:00:09]} 3. Nc3 {[%emt 0:00:11]} Bg7 {[%emt 0:00:08]} 4. e4 {[%emt 0:00:08]} d6 {[%emt 0:00:08]} 5. f4 {[%emt 0:01:03]} c5 {[%emt 0:00:12]} 6. dxc5 {[%emt 0:00:28]} Qa5 {[%emt 0:00:21] E76: King's Indian: Four Pawns Attack: Lines specific to 6 Nf3 move-order.} 7. Qa4+ {[%emt 0:00:34]} (7. Bd3 $11) 7... Qxa4 $17 {[%emt 0:00:19]} 8. Nxa4 {[%emt 0:00:10]} Nxe4 {[%emt 0:00:15] Black is better.} 9. cxd6 {[%emt 0:01:03]} Nxd6 {[%emt 0:00:28]} 10. Bd2 {[%emt 0:00:40] [#]} Ne4 $146 {[%emt 0:02:36]} ({Predecessor:} 10... Be6 11. Rc1 Ne4 12. Nf3 Nxd2 13. Nxd2 Nc6 14. g3 Rd8 15. Bg2 Nb4 16. Ke2 Bg4+ 17. Bf3 Rxd2+ 18. Kxd2 Bxf3 19. Rhf1 Bg2 20. Rf2 Bc6 21. Nc5 Bd4 {0-1 Picazo,P-Garcia,P Albacete-ch Preferente 1994}) 11. Nf3 {[%emt 0:05:07]} Nxd2 {[%emt 0:01:09]} 12. Nxd2 {[%emt 0:00:18]} (12. Kxd2 $142 O-O 13. Rd1) 12... Nc6 {[%emt 0:00:17]} 13. a3 {[%emt 0:02:50]} O-O {[%emt 0:01:57]} 14. Nf3 {[%emt 0:04:15]} Bf5 {[%emt 0:02:30]} 15. Be2 {[%emt 0:01:08]} Bc2 {[%emt 0:03:14] Black is more active. This pair of bishops is nice.} ({Black should play} 15... Rac8 16. Nc3 Na5) 16. Nc3 {[%emt 0:00:53]} Bxc3+ {[%emt 0:05:04]} 17. bxc3 {[%emt 0:00:03]} Na5 {[%emt 0:00:41]} 18. Ra2 {[%emt 0:00:55]} Be4 {[%emt 0:05:55]} 19. O-O {[%emt 0:00:53]} Rac8 {[%emt 0:01:11][%cal Oe4f3]} 20. Nd2 {[%emt 0:00:25]} (20. Ng5 $142 Bf5 21. g4) 20... Bf5 {[%emt 0:00:36]} 21. Rb2 {[%emt 0:00:54]} b6 {[%emt 0:00:29]} 22. Rb4 {[%emt 0:00:47]} (22. Rf3 $17 {was necessary.}) 22... Rfd8 $19 {[%emt 0:04:02]} 23. Nf3 {[%emt 0:11:31]} Be6 {[%emt 0:02:14][%cal Re6c4]} 24. Nd4 {[%emt 0:00:27]} (24. Re1 $17) 24... Bxc4 {[%emt 0:00:34]} 25. f5 {[%emt 0:03:04]} (25. Bxc4 $142 Nxc4 26. Re1) 25... Bxe2 {[%emt 0:00:37]} 26. Nxe2 {[%emt 0:00:02]} Rd2 {[%emt 0:01:40]} 27. fxg6 {[%emt 0:00:12]} (27. Re4 {keeps fighting.}) 27... hxg6 {[%emt 0:00:16]} (27... Rxe2 28. gxf7+ Kh8 29. f8=Q+ (29. f8=B Nc4 $11) 29... Rxf8 30. Rxf8+ Kg7 31. Rc8 $18) 28. Ng3 {[%emt 0:01:30]} Ra2 {[%emt 0:01:09]} (28... Rxc3 29. Ne4 Rcc2 30. Nxd2 Rxd2 31. Rbb1 $11) 29. Rbf4 {[%emt 0:04:53]} f6 {[%emt 0:01:36]} (29... Rxc3 30. Rxf7 Rc8 31. Rxe7 $11) 30. Re1 {[%emt 0:01:11]} Kf7 {[%emt 0:00:26]} (30... Rxa3 31. Rxe7 f5 32. Rxa7 $17) 31. Rh4 {[%emt 0:02:16]} Nc6 {[%emt 0:04:39]} ({Stronger than} 31... Rxc3 32. Rh7+ Kg8 33. Rexe7 $11) 32. a4 {[%emt 0:03:19]} Ne5 {[%emt 0:02:57] Wards off Rc4} 33. Rh7+ {[%emt 0:02:10]} Ke6 {[%emt 0:02:23]} 34. Ne2 {[%emt 0:02:52]} Rxa4 {[%emt 0:10:57]} 35. Rd1 {[%emt 0:04:06]} Nc6 {[%emt 0:00:57]} 36. Nd4+ $2 {[%emt 0:04:10] [#]} (36. h4 {was worth a try.}) 36... Nxd4 {[%emt 0:00:30]} 37. Re1+ {[%emt 0:01:05]} Kd6 {[%emt 0:00:35]} 38. cxd4 {[%emt 0:00:46][%mdl 4096] Endgame KRR-KRR} Rc7 {[%emt 0:00:45]} (38... Rxd4 $2 {loses.} 39. Rhxe7 $19) 39. d5 {[%emt 0:01:48]} a5 {[%emt 0:01:27][%cal Ba7a5,Ba5a4,Ba4a3][%mdl 32]} (39... Kxd5 $2 {is the wrong capture.} 40. Rg7 $19) 40. Re6+ {[%emt 0:00:53]} Kxd5 {[%emt 0:00:08]} 41. Rxb6 {[%emt 1:11:46]} Ra2 {[%emt 1:15:22]} (41... Rc1+ $142 42. Kf2 Rc2+ 43. Kg3 Rc3+ 44. Kf2 Ra2+ {[%mdl 64] Skewer} 45. Rb2 Rxb2+ 46. Kg1 Rc1#) 42. h3 {[%emt 0:00:00]} a4 {[%emt 0:00:00] [#] ...Rc1+ would be deadly.} 43. Kh2 {[%emt 0:00:00]} (43. Rb5+ $142 Kd6 44. Rb6+ Kd5 45. Rb5+ Kc4 46. Rb6) 43... Rcc2 {[%emt 0:00:00]} 44. Rxe7 {[%emt 0:00:00]} Rxg2+ {[%emt 0:00:00]} 45. Kh1 {[%emt 0:00:00]} Rgc2 {[%emt 0:00:00] ( -> ...Rc1+). Black is clearly winning.} 46. Re1 {[%emt 0:00:00] Against Rc1} Rf2 {[%emt 0:00:00]} (46... a3 $142 47. Rxf6 Rh2+ 48. Kg1 Rag2+ 49. Kf1 a2) 47. Kg1 {[%emt 0:00:00]} a3 {[%emt 0:00:00]} 48. Rb3 {[%emt 0:00:00]} Rg2+ {[%emt 0:00:00]} 49. Kh1 {[%emt 0:00:00]} Rgd2 {[%emt 0:00:00]} (49... Rh2+ $142 50. Kg1 Rag2+ 51. Kf1 Rb2) 50. Rc1 {[%emt 0:00:00]} Kd4 {[%emt 0:00:00]} (50... Rh2+ $142 51. Kg1 Rag2+ 52. Kf1 Rb2) 51. Kg1 {[%emt 0:00:00]} Rd3 {[%emt 0:00:00]} 52. Rb4+ {[%emt 0:00:00]} Ke3 {[%emt 0:00:00]} 53. Rg4 {[%emt 0:00:00]} Rb2 {[%emt 0:00:00] Weighted Error Value: White=0.81/Black=0.48} 0-1

[Event "39th OBSenEM 2023"]
[Site "Berlin"]
[Date "2023.01.24"]
[Round "1.3"]
[White "Grunewald, Peter"]
[Black "Ahlberg, Matthias"]
[Result "0-1"]
[ECO "B13"]
[WhiteElo "1798"]
[BlackElo "2207"]
[Annotator "TA"]
[PlyCount "58"]
[EventDate "2023.01.24"]
[EventType "swiss"]
[EventCountry "GER"]
[SourceTitle "playchess.com"]
[Source "ChessBase"]
[SourceQuality "1"]
[TimeControl "40/5400+30:1800+30"]

{[%evp 9,58,0,0,0,7,8,7,10,12,0,0,0,9,8,8,0,10,0,12,7,9,-8,0,-13,3,0,0,0,6,0,6,6,17,0,0,0,0,0,0,0,0,15,29,-39,-59,-34,-31,-135,-128,-233,-202]} 1. e4 {[%emt 0:00:05]} c6 {[%emt 0:00:05]} 2. d4 {[%emt 0:00:31]} d5 {[%emt 0:00:04]} 3. exd5 {[%emt 0:01:26]} cxd5 {[%emt 0:00:03]} 4. Nf3 {[%emt 0:01:08]} Nc6 {[%emt 0:00:10]} 5. Be2 {[%emt 0:00:28]} Bg4 {[%emt 0:01:10]} 6. O-O {[%emt 0:00:22] B13: Caro-Kann: Exchange Variation and Panov-Botvinnik Attack.} Nf6 {[%emt 0:00:18]} 7. h3 {[%emt 0:01:29]} Bh5 {[%emt 0:00:21]} 8. c3 {[%emt 0:01:26] The position is equal.} e6 {[%emt 0:01:16]} 9. Ne5 {[%emt 0:07:12]} Bxe2 {[%emt 0:01:59]} 10. Qxe2 {[%emt 0:00:12]} Be7 {[%emt 0:02:23]} 11. Nd2 {[%emt 0:12:05]} O-O {[%emt 0:01:32] [#]} 12. Nb3 $146 {[%emt 0:09:42]} ({Predecessor:} 12. Ndf3 Ne4 13. Nh2 Nxe5 14. dxe5 Rc8 15. Be3 Bc5 16. Rad1 Qb6 17. Bxc5 Nxc5 18. Rd4 {1-0 Kiss,I (1825)-Ortiz,H (1582) CAN-ch Seniors 2010 (5)}) 12... a6 {[%emt 0:05:00]} 13. Bf4 {[%emt 0:04:05]} Rc8 {[%emt 0:06:42]} 14. Rfe1 {[%emt 0:07:06]} Ne4 {[%emt 0:02:55]} 15. f3 {[%emt 0:04:02]} Nf6 {[%emt 0:01:59]} 16. Bh2 {[%emt 0:01:46]} Na5 {[%emt 0:03:17]} 17. Nxa5 {[%emt 0:02:51]} Qxa5 {[%emt 0:00:06]} 18. a3 {[%emt 0:07:42]} Qb6 {[%emt 0:06:25]} 19. g4 {[%emt 0:05:18]} Rfd8 {[%emt 0:02:30]} 20. Bg3 {[%emt 0:07:49]} Ne8 {[%emt 0:04:02][%cal Bf6e8,Be8d6,Bd6c4][%mdl 32]} 21. Bf2 {[%emt 0:02:54]} Nd6 {[%emt 0:08:14]} 22. Rab1 {[%emt 0:01:47]} Bf6 {[%emt 0:05:10]} 23. Nd3 {[%emt 0:02:20]} Nc4 {[%emt 0:02:44]} 24. Ne5 {[%emt 0:05:30]} Na5 {[%emt 0:05:21]} 25. f4 {[%emt 0:04:41]} g6 {[%emt 0:04:36]} 26. b4 {[%emt 0:02:46]} (26. h4 $11) 26... Nc4 $15 {[%emt 0:00:57]} 27. Nxc4 {[%emt 0:00:05]} Rxc4 {[%emt 0:00:20]} 28. Qd2 {[%emt 0:04:37]} ({White has to play} 28. Qf3 $1 $15) 28... Rdc8 $17 {[%emt 0:00:38]} 29. Rbc1 {[%emt 0:00:38]} (29. Rec1 $17 {was called for.}) 29... Qc7 {[%emt 0:00:34] Weighted Error Value: White=0.19 (very precise) /Black=0.05 (flawless)} 0-1

[Event "39th OBSenEM 2023"]
[Site "Berlin"]
[Date "2023.01.24"]
[Round "1.4"]
[White "Postler, Reinhard"]
[Black "Windmueller, Werner"]
[Result "1-0"]
[ECO "C41"]
[WhiteElo "2202"]
[BlackElo "1797"]
[Annotator "TA"]
[PlyCount "57"]
[EventDate "2023.01.24"]
[EventType "swiss"]
[EventCountry "GER"]
[SourceTitle "playchess.com"]
[Source "ChessBase"]
[SourceQuality "1"]
[TimeControl "40/5400+30:1800+30"]

{[%evp 9,57,89,161,107,120,129,160,151,137,155,148,148,188,166,218,220,214,233,229,225,276,272,279,210,266,258,252,243,314,248,295,298,290,220,220,220,256,245,304,290,306,309,283,291,367,367,367,360,353,353]} 1. e4 {[%emt 0:00:03]} e5 {[%emt 0:00:16]} 2. Nf3 {[%emt 0:00:07]} d6 {[%emt 0:00:19]} 3. d4 {[%emt 0:00:06]} Bg4 {[%emt 0:00:48]} 4. dxe5 {[%emt 0:00:26]} Bxf3 {[%emt 0:00:17]} 5. Qxf3 {[%emt 0:00:03]} Nc6 {[%emt 0:01:04]} (5... dxe5 $16 6. Qb3 Nd7) 6. exd6 {[%emt 0:03:30] C41: Philidor Defence.} (6. Qb3 $18) 6... Bxd6 $16 {[%emt 0:00:23] [#]} 7. Be3 $146 {[%emt 0:03:51]} ({Predecessor:} 7. Bc4 Nf6 8. O-O h6 9. Re1 Nd4 10. Qd3 c5 11. Bd2 Be5 12. f4 Bc7 13. Nc3 {1-0 Hutterer,V (975)-Schwarz,T (912) Styrian op U08/12 27th 2021 (8)}) 7... Qf6 {[%emt 0:02:28]} 8. Qxf6 {[%emt 0:01:30] White is clearly better.} Nxf6 {[%emt 0:00:40] [#]} 9. f3 {[%emt 0:00:18]} a6 {[%emt 0:02:20]} 10. Nd2 {[%emt 0:01:02]} Nb4 {[%emt 0:03:26]} 11. Kd1 {[%emt 0:02:14]} Rd8 {[%emt 0:01:34]} (11... Nd7 $142 12. c3 Nc6) 12. c3 $18 {[%emt 0:01:34]} Nc6 {[%emt 0:00:21]} 13. Kc2 {[%emt 0:00:44]} O-O {[%emt 0:03:09]} 14. Nc4 {[%emt 0:03:34]} b5 {[%emt 0:02:11]} 15. Nxd6 {[%emt 0:00:29]} cxd6 {[%emt 0:00:31]} 16. Bg5 {[%emt 0:00:56]} h6 {[%emt 0:01:47]} 17. Bxf6 {[%emt 0:00:25]} gxf6 {[%emt 0:00:19]} 18. Rd1 {[%emt 0:01:17]} Ne5 {[%emt 0:00:52]} 19. Be2 {[%emt 0:00:37]} Ng6 {[%emt 0:06:33]} 20. Rd2 {[%emt 0:00:58]} Nf4 {[%emt 0:00:53]} 21. g3 {[%emt 0:00:28]} Nxe2 {[%emt 0:00:35]} 22. Rxe2 {[%emt 0:00:01][%mdl 4096] Endgame KRR-KRR} Rfe8 {[%emt 0:00:56]} 23. Rd2 {[%emt 0:00:59]} Kf8 {[%emt 0:02:03]} 24. Rhd1 {[%emt 0:00:09]} Re6 {[%emt 0:02:17]} 25. Rd5 {[%emt 0:00:31]} Ke7 {[%emt 0:00:26] [#]} 26. a4 $1 {[%emt 0:00:36][%mdl 512]} Rb8 {[%emt 0:03:40]} (26... bxa4 27. Ra5) 27. axb5 {[%emt 0:00:26] White is winning.} axb5 {[%emt 0:00:23]} 28. R1d4 {[%emt 0:00:43]} Rb6 {[%emt 0:00:31]} 29. Rh5 {[%emt 0:01:26] Weighted Error Value: White=0.15 (very precise) /Black=0.32} 1-0

[Event "39th OBSenEM 2023"]
[Site "Berlin"]
[Date "2023.01.25"]
[Round "2.1"]
[White "Koehler, Gerhard"]
[Black "Schellknecht, Joerg"]
[Result "1-0"]
[ECO "A17"]
[WhiteElo "2241"]
[BlackElo "1903"]
[Annotator "TA"]
[PlyCount "115"]
[EventDate "2023.01.24"]
[EventType "swiss"]
[EventCountry "GER"]
[SourceTitle "playchess.com"]
[Source "ChessBase"]
[SourceQuality "1"]
[TimeControl "40/5400+30:1800+30"]

{[%evp 9,115,-3,17,-3,4,0,12,-16,-16,-45,-23,-17,-16,-23,0,0,0,-38,12,-22,16,-5,-12,0,12,14,11,4,120,125,159,13,20,13,20,24,28,21,36,36,36,-10,0,-15,-22,-41,-3,-50,-34,-38,0,-19,-20,-23,-25,-31,-9,-9,-16,-17,-12,-10,-15,-15,0,-65,-59,-78,-14,-8,-12,-87,-73,-98,-8,-8,-8,-8,-8,-8,-8,-8,-8,-8,0,0,0,0,0,0,0,0,0,0,0,0,0,0,0,0,0,0,29981,29982,29982,29983,29983,29984]} 1. c4 {[%emt 0:00:01]} e6 {[%emt 0:00:10]} 2. Nc3 {[%emt 0:00:35]} Nf6 {[%emt 0:00:36]} 3. Nf3 {[%emt 0:00:35]} d5 {[%emt 0:00:27]} 4. e3 {[%emt 0:00:13]} c5 {[%emt 0:00:30]} 5. cxd5 {[%emt 0:00:27]} Nxd5 {[%emt 0:04:52]} 6. Be2 {[%emt 0:00:58] A17: English Opening: 1...Nf6 with ...Bb4.} Nc6 {[%emt 0:01:13]} 7. O-O {[%emt 0:00:27]} Be7 {[%emt 0:01:13]} 8. d3 {[%emt 0:01:53] The position is equal.} O-O {[%emt 0:00:24]} 9. Bd2 {[%emt 0:00:23]} b6 {[%emt 0:03:51]} 10. a3 {[%emt 0:00:26]} Bb7 {[%emt 0:00:18]} 11. Rb1 {[%emt 0:00:24] [#]} Bf6 $146 {[%emt 0:01:32]} ({Predecessor:} 11... e5 12. b4 cxb4 13. Nxd5 Qxd5 14. axb4 e4 15. dxe4 Qxe4 16. Qb3 {½-½ Marangunic,S (2460)-Horvath,T (2460) AUT-chT2S 9394 1993}) 12. Ne4 {[%emt 0:04:22]} Be7 {[%emt 0:03:23]} 13. Qa4 {[%emt 0:04:28]} f5 {[%emt 0:23:07]} ({Better is} 13... Qe8 $15) 14. Nc3 {[%emt 0:04:43]} Bf6 {[%emt 0:02:35]} 15. Rfc1 {[%emt 0:08:00]} Ne5 {[%emt 0:03:38][%cal Oe5d3]} 16. Ne1 {[%emt 0:02:34]} Qe8 {[%emt 0:02:12]} 17. Qxe8 {[%emt 0:00:37]} Rfxe8 {[%emt 0:02:22]} 18. b4 {[%emt 0:05:43]} Be7 {[%emt 0:05:46]} (18... cxb4 $11 19. Nxd5 Bxd5 20. Bxb4 Rac8) 19. bxc5 $16 {[%emt 0:02:39]} Bxc5 {[%emt 0:07:27]} 20. Nb5 {[%emt 0:04:57]} (20. Nxd5 $1 $16 Bxd5 21. d4 Bxa3 22. Rc3 (22. dxe5 Bxc1 23. Bxc1 Rec8 $14)) 20... a6 $11 {[%emt 0:06:47]} 21. d4 {[%emt 0:09:24]} axb5 {[%emt 0:03:44]} 22. dxc5 {[%emt 0:00:20]} bxc5 {[%emt 0:01:36]} 23. Bxb5 {[%emt 0:01:24]} Re7 {[%emt 0:04:04]} 24. a4 {[%emt 0:00:49]} Rc7 {[%emt 0:00:26]} 25. Rb2 {[%emt 0:02:35]} (25. Nf3 $14 Nf7 26. h3) 25... Ba6 {[%emt 0:03:17]} 26. f3 {[%emt 0:05:02]} Bxb5 {[%emt 0:04:13]} 27. axb5 {[%emt 0:00:21]} Nd7 {[%emt 0:01:17]} (27... c4 $5 {[%cal Rc4c3]} 28. b6 Rb7 $15) 28. Kf2 {[%emt 0:11:12]} (28. Nd3 $11 {deserves consideration.}) 28... Kf7 {[%emt 0:00:27]} 29. Ke2 {[%emt 0:02:11]} g6 {[%emt 0:00:40]} 30. Rc4 {[%emt 0:04:05]} N5b6 {[%emt 0:02:45] A dynamic duo of knights.} 31. Rc1 {[%emt 0:01:52]} Ra3 {[%emt 0:01:40]} 32. e4 {[%emt 0:04:00]} e5 {[%emt 0:03:34]} 33. Nc2 {[%emt 0:05:23]} Ra4 {[%emt 0:00:20]} 34. exf5 {[%emt 0:00:51]} gxf5 {[%emt 0:00:03]} 35. Ne3 {[%emt 0:00:17] Repels Nc4} Ke6 {[%emt 0:01:28]} 36. Rbc2 {[%emt 0:02:20]} c4 {[%emt 0:01:43]} 37. Bc3 {[%emt 0:02:10]} (37. Nd1 $11) 37... Nc5 $15 {[%emt 0:02:33]} 38. Rd1 {[%emt 0:01:23][%cal Oe3f5]} Rd7 {[%emt 0:00:39]} ({Black should try} 38... f4 $17 39. Ng4 Nd3) 39. Rxd7 $11 {[%emt 0:01:43]} Ncxd7 {[%emt 0:00:10]} 40. g4 {[%emt 0:01:30] [#]} (40. g3 $11 {remains equal.}) 40... f4 $1 $17 {[%emt 0:00:22]} 41. Nd1 {[%emt 0:31:34]} Ra3 {[%emt 0:31:10]} (41... Nc5 $17 42. Kf1 Nd5) 42. Bb4 $132 {[%emt 0:03:34][%mdl 2048] White is fighting back} Rb3 {[%emt 0:00:10]} 43. Rb2 {[%emt 0:00:55]} Nd5 {[%emt 0:00:00]} 44. Rxb3 {[%emt 0:00:00]} cxb3 {[%emt 0:00:00][%mdl 4096] Endgame KBN-KNN} 45. Ba3 {[%emt 0:00:00]} N7b6 {[%emt 0:00:00]} (45... Nc7 $5 46. Nc3 $8 Nd5 $11) 46. Kd3 {[%emt 0:00:00] Wards off Nc4} Nc7 {[%emt 0:00:00]} 47. Nc3 {[%emt 0:00:00]} Nbd5 {[%emt 0:00:00]} 48. Nxd5 {[%emt 0:00:00]} Nxb5 {[%emt 0:00:49]} 49. Nxf4+ {[%emt 0:00:00]} exf4 {[%emt 0:00:01] KB-KN} 50. Bb2 {[%emt 0:00:00] Kc4 is the strong threat.} Kd5 {[%emt 0:00:21]} 51. h4 {[%emt 0:00:00]} Nd6 {[%emt 0:02:14]} 52. Bc1 {[%emt 0:00:00]} Nc4 {[%emt 0:00:41] ...b2 would be deadly.} 53. Bxf4 {[%emt 0:00:00]} b2 {[%emt 0:01:30]} 54. Kc2 {[%emt 0:00:00]} Kd4 {[%emt 0:00:17]} 55. h5 {[%emt 0:00:00] Hoping for g5.} Ne5 $2 {[%emt 0:02:41][%mdl 8192]} (55... Kd5 $11) 56. Bxe5+ {[%emt 0:00:00] White mates.} (56. Kxb2 Nd3+ 57. Kc2 Nxf4 $19) 56... Kxe5 {[%emt 0:00:00]} 57. g5 {[%emt 0:00:00]} Kf5 {[%emt 0:00:02] [#]} 58. f4 $1 {[%emt 0:00:00][%mdl 64] Promotion.   Weighted Error Value: White=0.15 (very precise) /Black=0.29 (precise)} ({Not} 58. Kxb2 Kxg5 59. Kc2 Kxh5 $11) 1-0

[Event "39th OBSenEM 2023"]
[Site "Berlin"]
[Date "2023.01.25"]
[Round "2.2"]
[White "Rollwitz, Juergen"]
[Black "Hess, Christian"]
[Result "0-1"]
[ECO "C01"]
[WhiteElo "1901"]
[BlackElo "2215"]
[Annotator "TA"]
[PlyCount "82"]
[EventDate "2023.01.24"]
[EventType "swiss"]
[EventCountry "GER"]
[SourceTitle "playchess.com"]
[Source "ChessBase"]
[SourceQuality "1"]
[TimeControl "40/5400+30:1800+30"]

{[%evp 12,82,0,-7,23,8,3,0,0,-7,-2,-31,-29,-29,-29,-40,-23,-37,-35,-41,-40,-41,-37,-62,-42,-52,-47,-76,-78,-74,-51,-41,-41,-163,-165,-166,-131,-133,-126,-142,-135,-149,-149,-149,-149,-199,-197,-253,-252,-260,-255,-230,-219,-209,-204,-206,-200,-220,-216,-264,-264,-252,-252,-315,-313,-428,-422,-402,-372,-457,-445,-789,-714]} 1. e4 {[%emt 0:00:11]} e6 {[%emt 0:00:33]} 2. d4 {[%emt 0:02:06]} d5 {[%emt 0:00:12]} 3. exd5 {[%emt 0:01:23]} exd5 {[%emt 0:00:16]} 4. Nf3 {[%emt 0:00:07]} Nf6 {[%emt 0:00:38]} 5. Be2 {[%emt 0:00:36]} Bd6 {[%emt 0:01:25]} 6. O-O {[%emt 0:01:31]} O-O {[%emt 0:00:33]} 7. Bg5 {[%emt 0:00:22]} Nbd7 {[%emt 0:04:04] C01: French: Exchange Variation.} 8. Nbd2 {[%emt 0:00:14]} c6 {[%emt 0:07:01]} 9. c3 {[%emt 0:01:04]} Qc7 {[%emt 0:15:12] [#] The position is equal.} 10. Bh4 $146 {[%emt 0:01:59]} ({Predecessor:} 10. h3 h6 11. Be3 Ne4 12. Bd3 Ndf6 13. Qc2 Re8 14. Rae1 Bd7 15. b3 Rad8 16. c4 {0-1 Weidenhoefer,R (1392)-Schanz,K (1818) Mittelfranken-ch QT 55th 2006 (1)}) 10... Ne4 {[%emt 0:07:35]} 11. Bg3 {[%emt 0:00:39]} (11. Qc2 $5 {[%cal Rd2e4]}) 11... Nxg3 {[%emt 0:04:29]} 12. hxg3 {[%emt 0:00:06]} Nf6 {[%emt 0:00:44]} 13. Re1 {[%emt 0:01:32]} Bd7 {[%emt 0:13:14]} 14. Bd3 {[%emt 0:02:02]} Rae8 {[%emt 0:02:49]} 15. Nf1 {[%emt 0:01:35]} Rxe1 {[%emt 0:02:34]} 16. Qxe1 {[%emt 0:00:14]} Re8 {[%emt 0:00:08]} 17. Qb1 {[%emt 0:02:11]} g6 {[%emt 0:08:21] Black is more active.} 18. Qc2 {[%emt 0:00:16]} c5 {[%emt 0:02:00]} 19. Re1 {[%emt 0:01:07]} Rxe1 {[%emt 0:00:13]} 20. Nxe1 {[%emt 0:00:19]} cxd4 {[%emt 0:01:25]} 21. cxd4 {[%emt 0:00:23]} Qa5 {[%emt 0:02:08][%csl LRa2,LRe1]} 22. Nf3 {[%emt 0:00:28]} (22. Qb1 $15) 22... Qxa2 $19 {[%emt 0:01:17]} 23. Ne5 {[%emt 0:00:47]} Qa4 {[%emt 0:05:29]} 24. Nxd7 {[%emt 0:00:39]} Qxd7 {[%emt 0:00:09]} 25. Ne3 {[%emt 0:00:42]} Bc7 {[%emt 0:01:52]} 26. Be2 {[%emt 0:01:52]} Bb6 {[%emt 0:01:08]} 27. Qd3 {[%emt 0:00:34]} Qa4 {[%emt 0:00:52]} 28. Nc2 {[%emt 0:00:36]} (28. Bf3 $17) 28... Qa2 {[%emt 0:01:09]} 29. b3 {[%emt 0:00:51]} (29. b4 {keeps fighting.}) 29... Qb1+ {[%emt 0:01:44]} 30. Bd1 {[%emt 0:01:07]} Ne4 {[%emt 0:03:05]} 31. Nb4 {[%emt 0:14:13]} Qxd3 {[%emt 0:02:41]} 32. Nxd3 {[%emt 0:00:28]} Bxd4 {[%emt 0:00:11][%mdl 4096] Endgame KBN-KBN} 33. Kf1 {[%emt 0:00:20]} Kg7 {[%emt 0:00:30]} 34. Ke1 {[%emt 0:00:17]} h5 {[%emt 0:02:56][%cal Bh7h5,Bh5h4][%mdl 32]} 35. Bf3 {[%emt 0:00:10]} Kf6 {[%emt 0:02:26]} 36. g4 {[%emt 0:00:51]} h4 {[%emt 0:00:58]} 37. Ke2 {[%emt 0:01:13]} a5 {[%emt 0:00:27][%cal Ba7a5,Ba5a4][%mdl 32]} 38. Nf4 {[%emt 0:02:08]} Ke5 {[%emt 0:01:46]} (38... Nxf2 $2 {too greedy.} 39. Nxd5+ Kg5 40. Nc7 $19) (38... Bxf2 $2 39. Nxd5+ (39. Bxe4 $2 dxe4 40. Kxf2 Kg5 $19) 39... Ke5 40. Nc7 $19) 39. Nd3+ {[%emt 0:00:10]} Kd6 {[%emt 0:00:26] [#] Hoping for ...Ng5.} 40. Ke1 {[%emt 0:00:49]} b5 {[%emt 0:01:56]} 41. Ke2 {[%emt 0:31:45]} (41. Bd1 $142) 41... a4 {[%emt 0:32:19] Weighted Error Value: White=0.36/Black=0.05 (flawless)} 0-1